fUST/lending_fUST_20240211
["ID","MTS","AMOUNT","RATE_DAILY","PERIOD"]
[313723454,1707613841149,-157.81633358,0.00019898,2]
[313723456,1707613841158,-1195.96426404,0.00019898,2]
[313723458,1707613841167,-271.36040216,0.00019898,2]
[313723460,1707613841176,-181.20743122,0.00019898,2]
[313723462,1707613841186,-261.98617996,0.00019898,2]
[313723464,1707613841195,-403.61310725,0.00019898,2]
[313723466,1707613841203,-156.30301027,0.00019898,2]
[313723468,1707613841212,-3052.84279497,0.00019898,2]
[313723470,1707613841224,-3171.72312632,0.00019898,2]
[313723473,1707613841236,-5065.20611869,0.00019898,2]
[313723475,1707613841245,-634.00126641,0.00019899,2]
[313723477,1707613841254,-258.85671834,0.00019899,2]
[313723479,1707613841263,-7078.16124969,0.000199,2]
[313723481,1707613841275,-71291.45181766,0.000199,2]
[313723715,1707614173714,2000.0,0.000254,30]
[313723716,1707614174070,2000.0,0.0002541,30]
[313723717,1707614174342,2000.0,0.0002542,30]
[313723718,1707614174650,2000.0,0.0002543,30]
[313723719,1707614174940,2000.0,0.0002544,30]
[313723720,1707614175244,2000.0,0.0002545,30]
[313723721,1707614175516,2000.0,0.0002546,30]
[313723722,1707614175835,2000.0,0.0002547,30]
[313723723,1707614176213,2000.0,0.0002548,30]
[313723724,1707614176397,2000.0,0.0002549,30]
[313723725,1707614176681,2000.0,0.000255,30]
[313723727,1707614826097,-481.74339471,0.00016853,2]
[313723728,1707614826117,-330.69366969,0.00016854,2]
[313723729,1707614826300,-55.10216984,0.00016854,2]
[313723730,1707614842086,-500.0,0.00016852,2]
[313723731,1707614842106,-155.46374415,0.00016852,2]
[313723732,1707614842125,-360.72437226,0.00016853,2]
[313723733,1707614842144,-295.90443276,0.00016853,2]
[313723734,1707614842165,-653.63782484,0.00016854,2]
[313723735,1707614850077,-181.61100377,0.00016851,2]
[313723736,1707614850098,-1018.7537034,0.00016851,2]
[313723737,1707614850118,-261.17070193,0.00016851,2]
[313723738,1707614850138,-1239.28765222,0.00016854,2]
[313723739,1707614850157,-154.87609912,0.00016855,2]
[313723740,1707614850176,-154.87609912,0.00016855,2]
[313723741,1707614850196,-154.87609912,0.00016856,2]
[313723742,1707614850216,-155.24607925,0.00016857,2]
[313723743,1707614850238,-154.87609912,0.00016953,2]
[313723744,1707614850259,-163.83177483,0.00016965,2]
[313723745,1707614850281,-179.71475769,0.00017199,2]
[313723746,1707614850302,-1182.57588806,0.00017199,2]
[313723747,1707614850323,-295.52003943,0.00017199,2]
[313723748,1707614850343,-309.97244024,0.00017199,2]
[313723749,1707614850364,-277.17265983,0.000172,2]
[313723750,1707614850384,-3125.38052496,0.00017201,2]
[313724009,1707615039980,-154.87609912,0.00017191,2]
[313724011,1707615039989,-154.87609912,0.00017191,2]
[313724013,1707615039999,-295.95451694,0.00017192,2]
[313724015,1707615040008,-154.87609912,0.00017192,2]
[313724017,1707615040017,-1689.12587152,0.00017193,2]
[313724019,1707615040026,-155.27287579,0.00017197,2]
[313724021,1707615040035,-155.19880179,0.00017198,2]
[313724023,1707615040044,-259.51559258,0.00017199,2]
[313724025,1707615040053,-155.07288426,0.00017199,2]
[313724026,1707615040062,-240.87826299,0.00017199,2]
[313724028,1707615040070,-155.06663951,0.00017199,2]
[313724030,1707615040079,-1888.75172406,0.00017199,2]
[313724032,1707615040088,-155.29915121,0.00017199,2]
[313724034,1707615040097,-480.57522101,0.00017199,2]
[313724036,1707615040107,-183.24164246,0.00017199,2]
[313724038,1707615040116,-247.46067787,0.00017199,2]
[313724040,1707615040125,-154.90705577,0.00017199,2]
[313724042,1707615040134,-323.90420148,0.00017199,2]
[313724044,1707615040143,-37080.86042547,0.00017199,2]
[313724046,1707615040153,-500.0,0.000172,2]
[313724048,1707615040162,-3643.77430262,0.000172,2]
[313724050,1707615040170,-155.21742931,0.00017201,2]
[313724052,1707615040180,-14675.53615527,0.000179,2]
[313724054,1707615040189,-24900.0,0.00018012,2]
[313724056,1707615040197,-200.0,0.00018058,2]
[313724059,1707615040207,-622.36860432,0.00018079,2]
[313724061,1707615040216,-156.51799454,0.00018079,2]
[313724063,1707615040226,-264.4506316,0.00019616,2]
[313724065,1707615040235,-1868.50136376,0.00019699,2]
[313724067,1707615040245,-264.4506316,0.00019712,2]
[313724070,1707615040253,-276000.0,0.000198,2]
[313724072,1707615040262,-233.6456,0.00019801,2]
[313724074,1707615040271,-264.4506316,0.00019808,2]
[313724076,1707615040280,-280.0,0.00019864,2]
[313724078,1707615040289,-173.25707385,0.00019887,2]
[313724080,1707615040299,-247.39952375,0.00019887,2]
[313724082,1707615040308,-154.8915759,0.00019887,2]
[313724083,1707615040318,-177.60998358,0.00019887,2]
[313724084,1707615040329,-228.90420585,0.00019887,2]
[313724085,1707615040338,-159.31275782,0.00019897,2]
[313724086,1707615040347,-155.0480649,0.00019898,2]
[313724087,1707615040356,-155.1388462,0.00019898,2]
[313724088,1707615040366,-155.19840225,0.00019898,2]
[313724089,1707615040375,-294.57728151,0.00019898,2]
[313724090,1707615040384,-161.52708074,0.00019898,2]
[313724091,1707615040394,-261.88794378,0.00019898,2]
[313724092,1707615040403,-540.11697096,0.00019898,2]
[313724093,1707615040412,-167.19218389,0.00019898,2]
[313724094,1707615040421,-7983.26892551,0.00019898,2]
[313724095,1707615040430,-2606.4717958,0.00019898,2]
[313724096,1707615040439,-155.05892239,0.00019898,2]
[313724097,1707615040448,-175.72920133,0.00019898,2]
[313724098,1707615040459,-563.02126555,0.00019898,2]
[313724099,1707615040468,-1138.92299914,0.00019898,2]
[313724100,1707615040480,-155.35988771,0.00019898,2]
[313724101,1707615040489,-346.27817447,0.00019898,2]
[313724102,1707615040498,-270.93823555,0.00019898,2]
[313724103,1707615040508,-905.63862374,0.00019898,2]
[313724104,1707615040517,-170.32344544,0.00019898,2]
[313724105,1707615040527,-213.6847704,0.00019898,2]
[313724106,1707615040536,-19906.99885653,0.00019898,2]
[313724107,1707615040545,-523.68160801,0.00019898,2]
[313724108,1707615040555,-214.69744757,0.00019898,2]
[313724109,1707615040565,-8236.64055242,0.00019898,2]
[313724110,1707615040574,-4495.75258545,0.00019899,2]
[313724111,1707615040584,-355.02181549,0.000199,2]
[313724112,1707615040593,-151.0,0.000199,2]
[313724113,1707615040601,-151.0,0.000199,2]
[313724115,1707615040610,-201.392123,0.000199,2]
[313724116,1707615040619,-151.0,0.000199,2]
[313724118,1707615040628,-998.656612,0.000199,2]
[313724120,1707615040638,-998.656612,0.000199,2]
[313724122,1707615040646,-151.0,0.000199,2]
[313724124,1707615040656,-1067.010355,0.000199,2]
[313724125,1707615040664,-1067.010355,0.000199,2]
[313724126,1707615040674,-343.385841,0.000199,2]
[313724127,1707615040683,-343.385841,0.000199,2]
[313724128,1707615040692,-239.38207,0.000199,2]
[313724129,1707615040703,-239.38207,0.000199,2]
[313724130,1707615040712,-264.4506316,0.00019904,2]
[313724131,1707615040722,-326.4520642,0.00019978,2]
[313724132,1707615040731,-163.17551542,0.00019988,2]
[313724133,1707615040740,-155.67091386,0.00019999,2]
[313724134,1707615040749,-324.18448095,0.0002,2]
[313724135,1707615040759,-1197.42052821,0.0002,2]
[313724136,1707615040768,-73912.554848,0.0002,2]
[313724137,1707615040777,-154.90705577,0.0002,2]
[313724138,1707615040786,-154.90705577,0.0002,2]
[313724139,1707615040795,-683.14900057,0.0002,2]
[313724141,1707615040804,-155.0,0.0002,2]
[313724143,1707615040815,-1200.0,0.0002,2]
[313724144,1707615040825,-200.0,0.0002,2]
[313724145,1707615040835,-151.0,0.0002,2]
[313724147,1707615040844,-151.0,0.0002,2]
[313724149,1707615040853,-151.0,0.0002,2]
[313724151,1707615040862,-998.656612,0.0002,2]
[313724153,1707615040872,-998.656612,0.0002,2]
[313724154,1707615040881,-151.0,0.0002,2]
[313724155,1707615040890,-1067.010355,0.0002,2]
[313724156,1707615040899,-1067.010355,0.0002,2]
[313724157,1707615040909,-343.385841,0.0002,2]
[313724158,1707615040918,-343.385841,0.0002,2]
[313724159,1707615040927,-264.4506316,0.0002,2]
[313724160,1707615040936,-239.38207,0.0002,2]
[313724161,1707615040945,-239.38207,0.0002,2]
[313724162,1707615040955,-11813.13090432,0.000201,2]
[313724163,1707615040964,-151.0,0.000201,2]
[313724164,1707615040973,-1067.010355,0.000201,2]
[313724165,1707615040982,-1067.010355,0.000201,2]
[313724166,1707615040991,-343.385841,0.000201,2]
[313724167,1707615041000,-343.385841,0.000201,2]
[313724168,1707615041009,-239.38207,0.000201,2]
[313724169,1707615041018,-239.38207,0.000201,2]
[313724170,1707615041027,-151.0,0.00020458,2]
[313724171,1707615041037,-151.0,0.00020722,2]
[313724172,1707615041047,-151.0,0.00020722,2]
[313724173,1707615041058,-998.656612,0.00020722,2]
[313724174,1707615041067,-998.656612,0.00020722,2]
[313724175,1707615041076,-1063.89788029,0.00020748,2]
[313724177,1707615041085,-151.0,0.00020748,2]
[313724179,1707615041094,-500.0,0.00020822,2]
[313724180,1707615041103,-499.049988,0.00020822,2]
[313724181,1707615041113,-500.0,0.00020822,2]
[313724182,1707615041122,-500.0,0.00020822,2]
[313724183,1707615041131,-500.0,0.00020822,2]
[313724185,1707615041140,-500.0,0.00020822,2]
[313724187,1707615041149,-500.0,0.00020822,2]
[313724189,1707615041159,-500.0,0.00020822,2]
[313724190,1707615041168,-500.0,0.00020822,2]
[313724191,1707615041177,-500.0,0.00020822,2]
[313724192,1707615041186,-500.0,0.00020822,2]
[313724193,1707615041196,-202.7,0.00020822,2]
[313724194,1707615041205,-227.31722802,0.00020822,2]
[313724195,1707615041214,-500.0,0.00020822,2]
[313724196,1707615041224,-500.0,0.00020822,2]
[313724197,1707615041233,-500.0,0.00020822,2]
[313724198,1707615041242,-500.0,0.00020822,2]
[313724199,1707615041252,-500.0,0.00020822,2]
[313724200,1707615041261,-500.0,0.00020822,2]
[313724201,1707615041270,-500.0,0.00020822,2]
[313724202,1707615041279,-500.0,0.00020822,2]
[313724203,1707615041288,-500.0,0.00020822,2]
[313724204,1707615041298,-500.0,0.00020822,2]
[313724205,1707615041306,-500.0,0.00020822,2]
[313724206,1707615041316,-500.0,0.00020822,2]
[313724207,1707615041331,-413.63058943,0.00020822,2]
[313724208,1707615041340,-500.0,0.00020822,2]
[313724209,1707615041348,-500.0,0.00020822,2]
[313724210,1707615041357,-500.0,0.00020822,2]
[313724211,1707615041368,-500.0,0.00020822,2]
[313724212,1707615041377,-500.0,0.00020822,2]
[313724213,1707615041386,-500.0,0.00020822,2]
[313724214,1707615041394,-500.0,0.00020822,2]
[313724215,1707615041403,-500.0,0.00020822,2]
[313724217,1707615041412,-500.0,0.00020822,2]
[313724218,1707615041422,-500.0,0.00020822,2]
[313724219,1707615041431,-500.0,0.00020822,2]
[313724220,1707615041440,-500.0,0.00020822,2]
[313724221,1707615041449,-500.0,0.00020822,2]
[313724222,1707615041459,-321.09721462,0.00020822,2]
[313724223,1707615041468,-500.0,0.00020822,2]
[313724224,1707615041478,-500.0,0.00020822,2]
[313724225,1707615041488,-500.0,0.00020822,2]
[313724226,1707615041497,-500.0,0.00020822,2]
[313724227,1707615041507,-574.51732206,0.00020822,2]
[313724228,1707615041516,-500.0,0.00020822,2]
[313724229,1707615041525,-500.0,0.00020822,2]
[313724230,1707615041536,-500.0,0.00020822,2]
[313724231,1707615041546,-500.0,0.00020822,2]
[313724232,1707615041556,-500.0,0.00020822,2]
[313724233,1707615041565,-500.0,0.00020822,2]
[313724234,1707615041574,-500.0,0.00020822,2]
[313724235,1707615041584,-500.0,0.00020822,2]
[313724236,1707615041593,-500.0,0.00020822,2]
[313724237,1707615041602,-500.0,0.00020822,2]
[313724238,1707615041611,-500.0,0.00020822,2]
[313724239,1707615041621,-500.0,0.00020822,2]
[313724240,1707615041631,-500.0,0.00020822,2]
[313724241,1707615041641,-500.0,0.00020822,2]
[313724242,1707615041651,-500.0,0.00020822,2]
[313724243,1707615041660,-500.0,0.00020822,2]
[313724244,1707615041669,-500.0,0.00020822,2]
[313724245,1707615041679,-500.0,0.00020822,2]
[313724246,1707615041688,-500.0,0.00020822,2]
[313724247,1707615041698,-500.0,0.00020822,2]
[313724248,1707615041708,-500.0,0.00020822,2]
[313724249,1707615041717,-500.0,0.00020822,2]
[313724250,1707615041726,-500.0,0.00020822,2]
[313724251,1707615041736,-500.0,0.00020822,2]
[313724252,1707615041745,-500.0,0.00020822,2]
[313724253,1707615041754,-500.0,0.00020822,2]
[313724254,1707615041763,-500.0,0.00020822,2]
[313724255,1707615041772,-500.0,0.00020822,2]
[313724256,1707615041781,-500.0,0.00020822,2]
[313724257,1707615041791,-500.0,0.00020822,2]
[313724258,1707615041800,-500.0,0.00020822,2]
[313724259,1707615041809,-230.05213705,0.00020822,2]
[313724260,1707615041818,-500.0,0.00020822,2]
[313724261,1707615041827,-500.0,0.00020822,2]
[313724262,1707615041836,-500.0,0.00020822,2]
[313724263,1707615041845,-500.0,0.00020822,2]
[313724264,1707615041854,-500.0,0.00020822,2]
[313724265,1707615041863,-500.0,0.00020822,2]
[313724266,1707615041872,-500.0,0.00020822,2]
[313724267,1707615041881,-500.0,0.00020822,2]
[313724268,1707615041890,-500.0,0.00020822,2]
[313724269,1707615041899,-500.0,0.00020822,2]
[313724270,1707615041908,-500.0,0.00020822,2]
[313724271,1707615041918,-500.0,0.00020822,2]
[313724272,1707615041928,-500.0,0.00020822,2]
[313724273,1707615041937,-500.0,0.00020822,2]
[313724274,1707615041946,-500.0,0.00020822,2]
[313724275,1707615041956,-500.0,0.00020822,2]
[313724276,1707615042086,-500.0,0.00020822,2]
[313724277,1707615042097,-500.0,0.00020822,2]
[313724278,1707615042106,-500.0,0.00020822,2]
[313724279,1707615042115,-500.0,0.00020822,2]
[313724280,1707615042125,-500.0,0.00020822,2]
[313724281,1707615042134,-500.0,0.00020822,2]
[313724282,1707615042143,-500.0,0.00020822,2]
[313724283,1707615042152,-500.0,0.00020822,2]
[313724284,1707615042162,-500.0,0.00020822,2]
[313724285,1707615042172,-500.0,0.00020822,2]
[313724286,1707615042181,-500.0,0.00020822,2]
[313724287,1707615042190,-500.0,0.00020822,2]
[313724288,1707615042199,-500.0,0.00020822,2]
[313724289,1707615042209,-484.45147775,0.00020822,2]
[313724290,1707615042218,-499.99999999,0.00020822,2]
[313724291,1707615042227,-500.0,0.00020822,2]
[313724292,1707615042237,-330.53299111,0.00020822,2]
[313724293,1707615042247,-500.0,0.00020822,2]
[313724294,1707615042256,-500.0,0.00020822,2]
[313724295,1707615042265,-200.59221235,0.00020822,2]
[313724296,1707615042274,-500.0,0.00020822,2]
[313724297,1707615042284,-500.0,0.00020822,2]
[313724298,1707615042293,-500.0,0.00020822,2]
[313724299,1707615042302,-500.0,0.00020822,2]
[313724300,1707615042311,-500.0,0.00020822,2]
[313724301,1707615042321,-500.0,0.00020822,2]
[313724302,1707615042330,-500.0,0.00020822,2]
[313724303,1707615042344,-500.0,0.00020822,2]
[313724304,1707615042354,-500.0,0.00020822,2]
[313724305,1707615042362,-500.0,0.00020822,2]
[313724306,1707615042371,-300.0,0.00020822,2]
[313724307,1707615042381,-500.0,0.00020822,2]
[313724308,1707615042391,-500.0,0.00020822,2]
[313724309,1707615042400,-500.0,0.00020822,2]
[313724310,1707615042409,-500.0,0.00020822,2]
[313724311,1707615042420,-300.0,0.00020822,2]
[313724312,1707615042430,-500.0,0.00020822,2]
[313724313,1707615042440,-500.0,0.00020822,2]
[313724314,1707615042450,-500.0,0.00020822,2]
[313724315,1707615042460,-500.0,0.00020822,2]
[313724316,1707615042469,-439.79358086,0.00020822,2]
[313724317,1707615042478,-500.0,0.00020822,2]
[313724318,1707615042487,-165.6469131,0.00020822,2]
[313724319,1707615042497,-500.0,0.00020822,2]
[313724320,1707615042506,-500.0,0.00020822,2]
[313724321,1707615042516,-500.0,0.00020822,2]
[313724322,1707615042525,-415.1367604,0.00020822,2]
[313724323,1707615042534,-500.0,0.00020822,2]
[313724324,1707615042544,-606.03643503,0.00020822,2]
[313724325,1707615042554,-500.0,0.00020822,2]
[313724326,1707615042564,-500.0,0.00020822,2]
[313724327,1707615042573,-500.0,0.00020822,2]
[313724328,1707615042582,-191.55764028,0.00020822,2]
[313724329,1707615042591,-500.0,0.00020822,2]
[313724330,1707615042600,-500.0,0.00020822,2]
[313724332,1707615042610,-500.0,0.00020822,2]
[313724334,1707615042619,-500.0,0.00020822,2]
[313724335,1707615042629,-500.0,0.00020822,2]
[313724337,1707615042639,-500.0,0.00020822,2]
[313724339,1707615042649,-198.1197008,0.00020822,2]
[313724340,1707615042658,-500.0,0.00020822,2]
[313724342,1707615042668,-219.85112405,0.00020822,2]
[313724344,1707615042677,-500.0,0.00020822,2]
[313724345,1707615042687,-500.0,0.00020822,2]
[313724346,1707615042697,-500.0,0.00020822,2]
[313724348,1707615042707,-500.0,0.00020822,2]
[313724350,1707615042716,-500.0,0.00020822,2]
[313724352,1707615042726,-500.0,0.00020822,2]
[313724354,1707615042735,-500.0,0.00020822,2]
[313724357,1707615042744,-158.3305004,0.00020822,2]
[313724359,1707615042754,-151.0,0.00020822,2]
[313724361,1707615042763,-151.0,0.00020822,2]
[313724363,1707615042773,-151.0,0.00020822,2]
[313724364,1707615042782,-158.926865,0.00020822,2]
[313724366,1707615042791,-151.0,0.00020822,2]
[313724368,1707615042801,-151.0,0.00020822,2]
[313724370,1707615042810,-151.0,0.00020822,2]
[313724372,1707615042820,-151.0,0.00020822,2]
[313724374,1707615042829,-151.0,0.00020822,2]
[313724376,1707615042839,-151.0,0.00020822,2]
[313724377,1707615042848,-151.0,0.00020822,2]
[313724378,1707615042857,-151.0,0.00020822,2]
[313724380,1707615042866,-151.0,0.00020822,2]
[313724381,1707615042875,-151.0,0.00020822,2]
[313724382,1707615042883,-998.656612,0.00020822,2]
[313724383,1707615042892,-998.656612,0.00020822,2]
[313724384,1707615042901,-998.656612,0.00020822,2]
[313724386,1707615042910,-998.656612,0.00020822,2]
[313724387,1707615042919,-998.656612,0.00020822,2]
[313724389,1707615042928,-998.656612,0.00020822,2]
[313724391,1707615042937,-998.656612,0.00020822,2]
[313724392,1707615042947,-998.656612,0.00020822,2]
[313724393,1707615042957,-998.656612,0.00020822,2]
[313724395,1707615042966,-998.656612,0.00020822,2]
[313724397,1707615042975,-283.142045,0.00020822,2]
[313724398,1707615042984,-1067.010355,0.00020822,2]
[313724399,1707615042993,-1067.010355,0.00020822,2]
[313724400,1707615043002,-1067.010355,0.00020822,2]
[313724401,1707615043012,-1067.010355,0.00020822,2]
[313724402,1707615043021,-1067.010355,0.00020822,2]
[313724403,1707615043030,-1067.010355,0.00020822,2]
[313724404,1707615043040,-1067.010355,0.00020822,2]
[313724405,1707615043049,-1067.010355,0.00020822,2]
[313724406,1707615043058,-1067.010355,0.00020822,2]
[313724407,1707615043068,-1067.010355,0.00020822,2]
[313724409,1707615043077,-343.385841,0.00020822,2]
[313724411,1707615043086,-343.385841,0.00020822,2]
[313724412,1707615043095,-343.385841,0.00020822,2]
[313724413,1707615043104,-343.385841,0.00020822,2]
[313724414,1707615043114,-343.385841,0.00020822,2]
[313724415,1707615043123,-343.385841,0.00020822,2]
[313724416,1707615043132,-343.385841,0.00020822,2]
[313724417,1707615043142,-343.385841,0.00020822,2]
[313724418,1707615043152,-343.385841,0.00020822,2]
[313724419,1707615043161,-343.385841,0.00020822,2]
[313724420,1707615043171,-239.38207,0.00020822,2]
[313724421,1707615043180,-239.38207,0.00020822,2]
[313724422,1707615043189,-239.38207,0.00020822,2]
[313724423,1707615043199,-239.38207,0.00020822,2]
[313724424,1707615043209,-239.38207,0.00020822,2]
[313724425,1707615043218,-239.38207,0.00020822,2]
[313724426,1707615043227,-239.38207,0.00020822,2]
[313724427,1707615043236,-239.38207,0.00020822,2]
[313724428,1707615043245,-239.38207,0.00020822,2]
[313724429,1707615043254,-239.38207,0.00020822,2]
[313724430,1707615043264,-500.0,0.00020999,2]
[313724431,1707615043273,-500.0,0.00020999,2]
[313724432,1707615043282,-298.4577261,0.00020999,2]
[313724433,1707615043291,-500.0,0.00020999,2]
[313724434,1707615043300,-400.66468085,0.00020999,2]
[313724435,1707615043309,-500.0,0.00020999,2]
[313724436,1707615043320,-500.0,0.00020999,2]
[313724437,1707615043329,-211.70211312,0.00020999,2]
[313724438,1707615043340,-416.23616065,0.00020999,2]
[313724439,1707615043349,-463.52960434,0.00020999,2]
[313724440,1707615043359,-564.42732172,0.00020999,2]
[313724441,1707615043368,-500.0,0.00020999,2]
[313724442,1707615043378,-500.0,0.00020999,2]
[313724443,1707615043387,-500.0,0.00020999,2]
[313724444,1707615043396,-500.0,0.00020999,2]
[313724445,1707615043406,-175.99153178,0.00020999,2]
[313724446,1707615043416,-233.7477788,0.00021,2]
[313724447,1707615043425,-13765.95939655,0.00021,2]
[313724448,1707615043434,-151.0,0.00021,2]
[313724449,1707615043442,-151.0,0.00021,2]
[313724450,1707615043451,-998.656612,0.00021,2]
[313724451,1707615043462,-998.656612,0.00021,2]
[313724452,1707615043470,-1067.010355,0.00021,2]
[313724453,1707615043479,-1067.010355,0.00021,2]
[313724454,1707615043489,-343.385841,0.00021,2]
[313724455,1707615043497,-343.385841,0.00021,2]
[313724456,1707615043508,-239.38207,0.00021,2]
[313724457,1707615043517,-239.38207,0.00021,2]
[313724458,1707615043527,-151.0,0.00021017,2]
[313724459,1707615043536,-151.0,0.00021576,2]
[313724460,1707615043545,-154.87609912,0.00021675,2]
[313724461,1707615043554,-642.19489401,0.00021785,2]
[313724462,1707615043564,-391.0,0.0002185,7]
[313724463,1707615043573,-500.0,0.00021917,2]
[313724464,1707615043582,-511.41065011,0.00021917,2]
[313724465,1707615043591,-166.666666,0.00021918,2]
[313724466,1707615043601,-7691.03473235,0.00022,2]
[313724467,1707615043609,-427.48779762,0.00022,2]
[313724468,1707615043619,-155.0480649,0.00022,2]
[313724469,1707615043628,-326.48350937,0.00022,2]
[313724470,1707615043639,-45042.45146491,0.00022094,2]
[313724471,1707615043648,-151.0,0.00022094,2]
[313724472,1707615043657,-151.0,0.00022094,2]
[313724473,1707615043667,-998.656612,0.00022094,2]
[313724474,1707615043676,-998.656622,0.00022094,2]
[313724475,1707615043686,-1067.010355,0.00022094,2]
[313724476,1707615043695,-1067.010356,0.00022094,2]
[313724477,1707615043705,-343.385841,0.00022094,2]
[313724478,1707615043714,-343.385833,0.00022094,2]
[313724479,1707615043724,-239.38207,0.00022094,2]
[313724480,1707615043733,-239.382072,0.00022094,2]
[313724481,1707615043743,-14318.24493898,0.00022124,2]
[313724482,1707615043752,-5000.0,0.00022124,2]
[313724483,1707615043761,-5000.0,0.00022124,2]
[313724484,1707615043770,-2122.15318259,0.00022124,2]
[313724485,1707615043779,-50000.0,0.00022124,2]
[313724486,1707615043789,-72934.71959176,0.00022124,2]
[313724487,1707615043798,-5000.0,0.00022124,2]
[313724488,1707615043807,-24699.2563589,0.00022124,2]
[313724489,1707615043816,-5000.0,0.00022124,2]
[313724490,1707615043825,-5000.0,0.00022124,2]
[313724491,1707615043834,-151.0,0.00022134,2]
[313724492,1707615043843,-20958.45015564,0.0002216,2]
[313724493,1707615043853,-5000.0,0.0002216,2]
[313724494,1707615043862,-5000.0,0.00022185,2]
[313724495,1707615043871,-277.51307129,0.00022277,2]
[313724496,1707615043881,-645.72558499,0.00022288,2]
[313724497,1707615043890,-179.72913494,0.00022288,2]
[313724498,1707615043899,-170.67839567,0.00022288,2]
[313724499,1707615043908,-300.21794361,0.00022288,2]
[313724500,1707615043918,-196.78585089,0.00022288,2]
[313724501,1707615043927,-178.85517856,0.00022288,2]
[313724502,1707615043936,-1000.0,0.00022288,3]
[313724503,1707615043945,-166.666666,0.00022431,2]
[313724504,1707615043956,-7450.38959398,0.0002259,2]
[313724505,1707615043965,-151.0,0.00022693,2]
[313724506,1707615043974,-621.1097447,0.00022875,2]
[313724507,1707615043983,-166.666666,0.00022944,2]
[313724508,1707615043993,-741.82846738,0.00023,2]
[313724509,1707615044002,-1263.33437611,0.00023,2]
[313724510,1707615044012,-9209.47444622,0.00023,2]
[313724511,1707615044021,-153.0,0.00023014,2]
[313724512,1707615044030,-151.0,0.00023252,2]
[313724513,1707615044039,-454.24843808,0.0002331,2]
[313724514,1707615044048,-166.666666,0.00023456,2]
[313724515,1707615044058,-151.0,0.00023811,2]
[313724516,1707615044067,-166.666666,0.00023969,2]
[313724517,1707615044076,-1176.33876602,0.00024,2]
[313724518,1707615044085,-592.84209843,0.00024,2]
[313724519,1707615044094,-200.0,0.00024035,7]
[313724520,1707615044103,-348.0,0.00024035,7]
[313724521,1707615044112,-151.0,0.0002437,2]
[313724522,1707615044121,-201.49906293,0.00024395,2]
[313724523,1707615044130,-166.666666,0.00024482,2]
[313724524,1707615044139,-500.0,0.000245,7]
[313724525,1707615044149,-500.0,0.000245,7]
[313724526,1707615044158,-500.0,0.000245,7]
[313724527,1707615044167,-500.0,0.000245,7]
[313724528,1707615044176,-500.0,0.000245,7]
[313724529,1707615044186,-500.0,0.000245,7]
[313724530,1707615044195,-500.0,0.000245,7]
[313724531,1707615044204,-500.0,0.000245,7]
[313724532,1707615044214,-500.0,0.000245,7]
[313724533,1707615044223,-500.0,0.000245,7]
[313724534,1707615044233,-500.0,0.000245,7]
[313724535,1707615044242,-500.0,0.000245,7]
[313724536,1707615044250,-500.0,0.000245,7]
[313724537,1707615044259,-500.0,0.000245,7]
[313724538,1707615044268,-220.42,0.000245,7]
[313724539,1707615044278,-151.0,0.00024929,2]
[313724540,1707615044287,-155.49128975,0.00025,2]
[313724541,1707615044296,-1556.34990313,0.00025,2]
[313724542,1707615044305,-335.73756915,0.00025,2]